[Event "EYCC Girls U10 2021"]
[Site "Tornelo"]
[Date "2021.10.15"]
[Round "9.1"]
[White "Gratskova, Anastasia"]
[Black "Preobrazhenskaya, Diana"]
[Result "0-1"]
[ECO "A28"]
[WhiteElo "1313"]
[BlackElo "1764"]
[Annotator "NA"]
[PlyCount "84"]
[EventDate "2021.10.15"]
[EventType "swiss"]
[EventCountry "NET"]
[SourceTitle "playchess.com"]
[Source "ChessBase"]
[SourceQuality "1"]
[TimeControl "5400+30"]

1. c4 {[%emt 0:00:30]} e5 {[%emt 0:00:40]} 2. Nc3 {[%emt 0:00:05]} Nf6 {[%emt 0:00:05]} 3. Nf3 {[%emt 0:00:04]} Nc6 {[%emt 0:00:05]} 4. e3 {[%emt 0:00:06]} d5 {[%emt 0:01:29]} 5. cxd5 {[%emt 0:00:29]} Nxd5 {[%emt 0:00:28]} 6. Bb5 {[%emt 0:00:09]} Nxc3 {[%emt 0:01:12]} 7. bxc3 {[%emt 0:00:12]} Bd7 {[%emt 0:04:43]} 8. d4 {[%emt 0:00:33]} exd4 {[%emt 0:01:59]} 9. cxd4 {[%emt 0:00:21]} Bd6 {[%emt 0:02:38]} 10. O-O {[%emt 0:00:56]} O-O {[%emt 0:01:39]} 11. a4 {[%emt 0:09:08]} a6 {[%emt 0:03:08]} 12. Bxc6 {[%emt 0:04:38]} Bxc6 {[%emt 0:01:05]} 13. Ba3 {[%emt 0:00:21]} Bxa3 {[%emt 0:02:12]} 14. Rxa3 {[%emt 0:00:07]} Qd6 {[%emt 0:01:00]} 15. Ra1 {[%emt 0:00:25]} Qd5 {[%emt 0:00:49]} 16. Rc1 {[%emt 0:03:57]} Rfd8 {[%emt 0:01:16]} 17. Re1 {[%emt 0:10:32]} Qe4 {[%emt 0:05:36]} 18. Rc5 {[%emt 0:07:03]} Re8 {[%emt 0:05:51]} 19. Kh1 {[%emt 0:03:25]} Rad8 {[%emt 0:01:32]} 20. Rg1 {[%emt 0:02:18]} Rd6 {[%emt 0:02:56]} 21. Ne5 {[%emt 0:06:47]} Rh6 {[%emt 0:04:15]} 22. Qf3 {[%emt 0:04:29]} Rxe5 {[%emt 0:07:45]} 23. Rxc6 {[%emt 0:04:11]} Rxc6 {[%emt 0:05:33]} 24. dxe5 {[%emt 0:00:09]} Qxf3 {[%emt 0:00:31]} 25. gxf3 {[%emt 0:00:04]} b5 {[%emt 0:01:22]} 26. axb5 {[%emt 0:01:29]} axb5 {[%emt 0:00:06]} 27. Rb1 {[%emt 0:00:18]} Rb6 {[%emt 0:00:58]} 28. Kg1 {[%emt 0:00:21]} c5 {[%emt 0:00:37]} 29. Kf1 {[%emt 0:00:16]} c4 {[%emt 0:01:17]} 30. Rb4 {[%emt 0:01:11]} Kf8 {[%emt 0:00:39]} 31. Ke2 {[%emt 0:00:28]} Ke7 {[%emt 0:00:04]} 32. e4 {[%emt 0:00:33]} Kd7 {[%emt 0:00:38]} 33. Ke3 {[%emt 0:01:10]} Kc6 {[%emt 0:00:19]} 34. Kd4 {[%emt 0:00:32]} Rb8 {[%emt 0:00:58]} 35. Rb2 {[%emt 0:01:35]} Rd8+ {[%emt 0:00:26]} 36. Ke3 {[%emt 0:00:08]} Kc5 {[%emt 0:01:01]} 37. h4 {[%emt 0:01:04]} b4 {[%emt 0:01:06]} 38. Ra2 {[%emt 0:00:50]} b3 {[%emt 0:01:51]} 39. Ra7 {[%emt 0:00:36]} b2 {[%emt 0:00:46]} 40. Rb7 {[%emt 0:00:13]} Rd3+ {[%emt 0:00:11]} 41. Ke2 {[%emt 0:00:11]} Rb3 {[%emt 0:00:08]} 42. Rc7+ {[%emt 0:00:05]} Kb6 {[%emt 0:00:10]} 0-1

[Event "EYCC Girls U10 2021"]
[Site "Tornelo"]
[Date "2021.10.15"]
[Round "9.2"]
[White "Aydogan, Arya"]
[Black "Semenova, Vasilisa"]
[Result "0-1"]
[ECO "B28"]
[WhiteElo "1250"]
[BlackElo "1305"]
[Annotator "NA"]
[PlyCount "122"]
[EventDate "2021.10.15"]
[EventType "swiss"]
[EventCountry "NET"]
[SourceTitle "playchess.com"]
[Source "ChessBase"]
[SourceQuality "1"]
[TimeControl "5400+30"]

1. e4 {[%emt 0:00:30]} c5 {[%emt 0:00:40]} 2. Nf3 {[%emt 0:00:07]} a6 {[%emt 0:00:09]} 3. c3 {[%emt 0:00:08]} e6 {[%emt 0:00:24]} 4. d4 {[%emt 0:00:24]} cxd4 {[%emt 0:00:53]} 5. cxd4 {[%emt 0:00:09]} d5 {[%emt 0:00:11]} 6. e5 {[%emt 0:00:16]} Nc6 {[%emt 0:00:07]} 7. Bd3 {[%emt 0:01:45]} Bb4+ {[%emt 0:00:20]} 8. Bd2 {[%emt 0:02:38]} Bxd2+ {[%emt 0:00:18]} 9. Qxd2 {[%emt 0:01:02]} Nge7 {[%emt 0:02:06]} 10. O-O {[%emt 0:01:36]} Ng6 {[%emt 0:00:44]} 11. Nc3 {[%emt 0:05:08]} Bd7 {[%emt 0:05:37]} 12. Rac1 {[%emt 0:06:23]} Nh4 {[%emt 0:02:00]} 13. Be2 {[%emt 0:07:55]} Nxf3+ {[%emt 0:03:48]} 14. Bxf3 {[%emt 0:00:19]} Na7 {[%emt 0:01:22]} 15. Be2 {[%emt 0:08:33]} O-O {[%emt 0:02:58]} 16. Bd3 {[%emt 0:03:47]} Qa5 {[%emt 0:04:44]} 17. Qe3 {[%emt 0:13:50]} Nb5 {[%emt 0:01:05]} 18. Nxb5 {[%emt 0:01:40]} Bxb5 {[%emt 0:00:06]} 19. a3 {[%emt 0:03:02]} Bxd3 {[%emt 0:00:30]} 20. Qxd3 {[%emt 0:00:09]} Rac8 {[%emt 0:00:14]} 21. b4 {[%emt 0:03:06]} Qa4 {[%emt 0:00:44]} 22. Rc3 {[%emt 0:07:24]} Rc6 {[%emt 0:00:54]} 23. Rfc1 {[%emt 0:00:37]} Rfc8 {[%emt 0:00:19]} 24. g3 {[%emt 0:03:08]} h6 {[%emt 0:01:50]} 25. Kf1 {[%emt 0:02:31]} Rxc3 {[%emt 0:09:20]} 26. Rxc3 {[%emt 0:00:05]} Rxc3 {[%emt 0:00:04]} 27. Qxc3 {[%emt 0:00:03]} Qb5+ {[%emt 0:00:40]} 28. Ke1 {[%emt 0:03:00]} Qc4 {[%emt 0:00:59]} 29. Kd2 {[%emt 0:02:05]} b5 {[%emt 0:00:06]} 30. Kc2 {[%emt 0:03:57]} Kf8 {[%emt 0:00:25]} 31. Kb2 {[%emt 0:01:49]} Kg8 {[%emt 0:01:29]} 32. Kc2 {[%emt 0:00:44]} Kh7 {[%emt 0:00:08]} 33. Kd2 {[%emt 0:01:00]} Qxc3+ {[%emt 0:01:31]} 34. Kxc3 {[%emt 0:00:16]} Kg6 {[%emt 0:00:04]} 35. Kd3 {[%emt 0:03:31]} Kg5 {[%emt 0:00:30]} 36. Ke3 {[%emt 0:06:34]} Kg4 {[%emt 0:00:22]} 37. h4 {[%emt 0:01:29]} f6 {[%emt 0:00:10]} 38. f4 {[%emt 0:01:01]} fxe5 {[%emt 0:01:04]} 39. dxe5 {[%emt 0:01:39]} g6 {[%emt 0:00:06]} 40. h5 {[%emt 0:04:05]} g5 {[%emt 0:00:50]} 41. fxg5 {[%emt 0:01:55]} Kxg5 {[%emt 0:00:05]} 42. Kd4 {[%emt 0:00:42]} Kf5 {[%emt 0:00:15]} 43. Kd3 {[%emt 0:00:31]} Kxe5 {[%emt 0:00:09]} 44. Ke3 {[%emt 0:00:09]} Kf5 {[%emt 0:00:06]} 45. Kf3 {[%emt 0:00:16]} d4 {[%emt 0:00:09]} 46. g4+ {[%emt 0:00:14]} Kg5 {[%emt 0:00:03]} 47. Ke4 {[%emt 0:00:15]} e5 {[%emt 0:00:04]} 48. Kf3 {[%emt 0:00:55]} d3 {[%emt 0:00:04]} 49. Ke3 {[%emt 0:00:52]} e4 {[%emt 0:00:03]} 50. Kxe4 {[%emt 0:00:27]} d2 {[%emt 0:00:05]} 51. Kd5 {[%emt 0:00:28]} d1=Q+ {[%emt 0:00:04]} 52. Kc5 {[%emt 0:00:04]} Qxg4 {[%emt 0:00:04]} 53. Kb6 {[%emt 0:00:08]} Qe6+ {[%emt 0:00:11]} 54. Ka5 {[%emt 0:00:17]} Qb3 {[%emt 0:00:07]} 55. Kxa6 {[%emt 0:00:11]} Qxa3+ {[%emt 0:00:06]} 56. Kxb5 {[%emt 0:00:02]} Kxh5 {[%emt 0:00:04]} 57. Kc4 {[%emt 0:00:04]} Kg4 {[%emt 0:00:05]} 58. b5 {[%emt 0:00:04]} Kf4 {[%emt 0:00:06]} 59. b6 {[%emt 0:00:12]} Ke5 {[%emt 0:00:07]} 60. Kb5 {[%emt 0:00:04]} Kd6 {[%emt 0:00:05]} 61. b7 {[%emt 0:00:14]} Kc7 {[%emt 0:00:05]} 0-1

[Event "EYCC Girls U10 2021"]
[Site "Tornelo"]
[Date "2021.10.15"]
[Round "9.3"]
[White "Bashirli, Saadat"]
[Black "Blinova, Sofia"]
[Result "1/2-1/2"]
[ECO "C42"]
[WhiteElo "1284"]
[BlackElo "1297"]
[Annotator "NA"]
[PlyCount "124"]
[EventDate "2021.10.15"]
[EventType "swiss"]
[EventCountry "NET"]
[SourceTitle "playchess.com"]
[Source "ChessBase"]
[SourceQuality "1"]
[TimeControl "5400+30"]

1. e4 {[%emt 0:00:30]} e5 {[%emt 0:00:33]} 2. Nf3 {[%emt 0:00:06]} Nf6 {[%emt 0:00:03]} 3. Nxe5 {[%emt 0:00:06]} d6 {[%emt 0:00:03]} 4. Nc4 {[%emt 0:00:04]} Nxe4 {[%emt 0:00:13]} 5. Qe2 {[%emt 0:00:05]} Qe7 {[%emt 0:00:08]} 6. Ne3 {[%emt 0:00:05]} Nc6 {[%emt 0:00:48]} 7. Nd5 {[%emt 0:00:17]} Qe5 {[%emt 0:00:31]} 8. Nbc3 {[%emt 0:03:41]} Nxc3 {[%emt 0:05:09]} 9. dxc3 {[%emt 0:00:46]} Qxe2+ {[%emt 0:00:21]} 10. Bxe2 {[%emt 0:00:08]} Kd8 {[%emt 0:00:34]} 11. Bg5+ {[%emt 0:01:11]} Be7 {[%emt 0:01:12]} 12. Nxe7 {[%emt 0:02:03]} Nxe7 {[%emt 0:00:05]} 13. Bxe7+ {[%emt 0:00:05]} Kxe7 {[%emt 0:00:05]} 14. O-O-O {[%emt 0:00:06]} Be6 {[%emt 0:01:43]} 15. Rhe1 {[%emt 0:00:37]} Rhe8 {[%emt 0:00:50]} 16. Rd4 {[%emt 0:00:50]} Kf8 {[%emt 0:05:06]} 17. Bf3 {[%emt 0:01:02]} Rab8 {[%emt 0:06:47]} 18. b3 {[%emt 0:01:37]} Red8 {[%emt 0:09:02]} 19. Kb2 {[%emt 0:01:03]} Re8 {[%emt 0:12:46]} 20. Rde4 {[%emt 0:00:56]} Bd7 {[%emt 0:06:00]} 21. Rxe8+ {[%emt 0:01:53]} Bxe8 {[%emt 0:00:07]} 22. c4 {[%emt 0:00:58]} b5 {[%emt 0:05:41]} 23. cxb5 {[%emt 0:00:53]} Bxb5 {[%emt 0:00:24]} 24. Kc3 {[%emt 0:00:41]} Bd7 {[%emt 0:02:32]} 25. Kd2 {[%emt 0:00:58]} Be6 {[%emt 0:00:33]} 26. Re3 {[%emt 0:00:37]} Ke7 {[%emt 0:02:44]} 27. Bd5 {[%emt 0:06:18]} Rb5 {[%emt 0:02:00]} 28. Bxe6 {[%emt 0:03:02]} fxe6 {[%emt 0:00:06]} 29. Rg3 {[%emt 0:00:29]} Kf6 {[%emt 0:00:59]} 30. Rh3 {[%emt 0:03:30]} h6 {[%emt 0:01:58]} 31. Rc3 {[%emt 0:00:38]} c5 {[%emt 0:01:08]} 32. Rf3+ {[%emt 0:00:23]} Ke7 {[%emt 0:00:23]} 33. Rg3 {[%emt 0:01:52]} Kf6 {[%emt 0:00:10]} 34. Kd3 {[%emt 0:02:31]} Rb4 {[%emt 0:01:47]} 35. Rf3+ {[%emt 0:00:57]} Ke7 {[%emt 0:00:37]} 36. c3 {[%emt 0:01:25]} Rb6 {[%emt 0:06:17]} 37. Kc4 {[%emt 0:00:46]} a6 {[%emt 0:03:22]} 38. Re3 {[%emt 0:03:48]} Rb8 {[%emt 0:02:48]} 39. Rg3 {[%emt 0:01:36]} Kf6 {[%emt 0:00:17]} 40. h4 {[%emt 0:00:53]} Rc8 {[%emt 0:00:54]} 41. Kd3 {[%emt 0:00:19]} d5 {[%emt 0:00:45]} 42. Rg4 {[%emt 0:00:43]} Rc6 {[%emt 0:01:33]} 43. h5 {[%emt 0:00:28]} Kf7 {[%emt 0:04:05]} 44. c4 {[%emt 0:03:12]} d4 {[%emt 0:06:19]} 45. Ke4 {[%emt 0:00:46]} Rd6 {[%emt 0:01:30]} 46. Rg3 {[%emt 0:01:59]} a5 {[%emt 0:05:13]} 47. a3 {[%emt 0:01:50]} Rb6 {[%emt 0:01:46]} 48. a4 {[%emt 0:00:39]} Kf6 {[%emt 0:01:29]} 49. f4 {[%emt 0:01:21]} Rd6 {[%emt 0:01:09]} 50. Rf3 {[%emt 0:01:06]} g6 {[%emt 0:01:53]} 51. hxg6 {[%emt 0:02:36]} Kxg6 {[%emt 0:00:04]} 52. g4 {[%emt 0:00:09]} Rd8 {[%emt 0:02:39]} 53. Rh3 {[%emt 0:01:13]} Rd7 {[%emt 0:01:07]} 54. Rg3 {[%emt 0:01:13]} Rd8 {[%emt 0:00:38]} 55. Rd3 {[%emt 0:00:24]} Kf6 {[%emt 0:00:28]} 56. Rh3 {[%emt 0:01:20]} Kg6 {[%emt 0:00:12]} 57. Kd3 {[%emt 0:00:42]} Rf8 {[%emt 0:00:35]} 58. Ke4 {[%emt 0:00:39]} Rd8 {[%emt 0:00:15]} 59. Rg3 {[%emt 0:00:46]} Kf6 {[%emt 0:00:46]} 60. Kd3 {[%emt 0:02:26]} Kg6 {[%emt 0:00:23]} 61. Ke4 {[%emt 0:00:42]} Kf6 {[%emt 0:00:14]} 62. Rh3 {[%emt 0:00:25]} Kg6 {[%emt 0:00:09]} 1/2-1/2

[Event "EYCC Girls U10 2021"]
[Site "Tornelo"]
[Date "2021.10.15"]
[Round "9.5"]
[White "Sokolova, Regina"]
[Black "Zeybek, Kayla Nil"]
[Result "1-0"]
[ECO "C06"]
[WhiteElo "1364"]
[BlackElo "1221"]
[Annotator "NA"]
[PlyCount "149"]
[EventDate "2021.10.15"]
[EventType "swiss"]
[EventCountry "NET"]
[SourceTitle "playchess.com"]
[Source "ChessBase"]
[SourceQuality "1"]
[TimeControl "5400+30"]

1. e4 {[%emt 0:00:30]} e6 {[%emt 0:00:33]} 2. d4 {[%emt 0:00:04]} d5 {[%emt 0:00:02]} 3. Nd2 {[%emt 0:00:07]} Nf6 {[%emt 0:00:06]} 4. e5 {[%emt 0:00:04]} Nfd7 {[%emt 0:00:03]} 5. Bd3 {[%emt 0:00:03]} c5 {[%emt 0:00:03]} 6. c3 {[%emt 0:00:06]} Nc6 {[%emt 0:00:04]} 7. Ne2 {[%emt 0:00:06]} Qb6 {[%emt 0:00:17]} 8. Nf3 {[%emt 0:00:21]} cxd4 {[%emt 0:00:13]} 9. cxd4 {[%emt 0:00:15]} f6 {[%emt 0:04:12]} 10. exf6 {[%emt 0:00:17]} Bb4+ {[%emt 0:00:09]} 11. Bd2 {[%emt 0:07:57]} Nxf6 {[%emt 0:00:26]} 12. O-O {[%emt 0:01:13]} O-O {[%emt 0:00:34]} 13. Bxb4 {[%emt 0:17:36]} Qxb4 {[%emt 0:04:53]} 14. Rb1 {[%emt 0:13:49]} Bd7 {[%emt 0:01:17]} 15. Qe1 {[%emt 0:04:15]} Qd6 {[%emt 0:05:31]} 16. a3 {[%emt 0:06:08]} Be8 {[%emt 0:16:55]} 17. Ng3 {[%emt 0:06:31]} Bf7 {[%emt 0:07:18]} 18. Bb5 {[%emt 0:03:17]} Bg6 {[%emt 0:08:43]} 19. Rc1 {[%emt 0:02:38]} Nd7 {[%emt 0:14:21]} 20. Bxc6 {[%emt 0:01:46]} bxc6 {[%emt 0:00:07]} 21. Qc3 {[%emt 0:01:07]} Rac8 {[%emt 0:01:30]} 22. b4 {[%emt 0:03:35]} Bf5 {[%emt 0:11:20]} 23. Rfe1 {[%emt 0:00:55]} Bg4 {[%emt 0:02:03]} 24. Ne5 {[%emt 0:01:07]} Nxe5 {[%emt 0:00:14]} 25. Rxe5 {[%emt 0:00:15]} Rf7 {[%emt 0:05:32]} 26. f3 {[%emt 0:01:22]} Bf5 {[%emt 0:00:14]} 27. Qc5 {[%emt 0:01:46]} Qd7 {[%emt 0:03:08]} 28. b5 {[%emt 0:02:21]} Bg6 {[%emt 0:07:43]} 29. bxc6 {[%emt 0:00:36]} Qe7 {[%emt 0:02:18]} 30. a4 {[%emt 0:08:08]} Qxc5 {[%emt 0:01:45]} 31. Rxc5 {[%emt 0:00:06]} Kf8 {[%emt 0:00:34]} 32. Rxe6 {[%emt 0:00:21]} Rfc7 {[%emt 0:01:40]} 33. Rd6 {[%emt 0:02:19]} Bf7 {[%emt 0:02:33]} 34. Rd7 {[%emt 0:02:17]} Ke8 {[%emt 0:00:25]} 35. Rxc7 {[%emt 0:00:52]} Rxc7 {[%emt 0:00:05]} 36. Nf5 {[%emt 0:00:33]} Be6 {[%emt 0:00:41]} 37. Nd6+ {[%emt 0:00:37]} Kd8 {[%emt 0:00:49]} 38. Nb5 {[%emt 0:00:14]} Rc8 {[%emt 0:00:10]} 39. Nxa7 {[%emt 0:00:19]} Ra8 {[%emt 0:00:10]} 40. c7+ {[%emt 0:00:07]} Ke7 {[%emt 0:00:30]} 41. c8=Q {[%emt 0:00:34]} Bxc8 {[%emt 0:00:06]} 42. Nxc8+ {[%emt 0:00:04]} Ke6 {[%emt 0:00:31]} 43. Nb6 {[%emt 0:00:12]} Ra6 {[%emt 0:00:16]} 44. a5 {[%emt 0:00:09]} g5 {[%emt 0:00:32]} 45. Rxd5 {[%emt 0:00:15]} h6 {[%emt 0:00:23]} 46. Rc5 {[%emt 0:00:17]} Kd6 {[%emt 0:00:10]} 47. Nc4+ {[%emt 0:00:06]} Kd7 {[%emt 0:00:06]} 48. Ne5+ {[%emt 0:00:09]} Kd6 {[%emt 0:00:08]} 49. g3 {[%emt 0:00:23]} Ke7 {[%emt 0:00:27]} 50. Nc6+ {[%emt 0:00:05]} Kd6 {[%emt 0:00:29]} 51. Nb4 {[%emt 0:00:08]} Ra7 {[%emt 0:00:07]} 52. a6 {[%emt 0:00:10]} Kd7 {[%emt 0:00:19]} 53. Nc6 {[%emt 0:00:25]} Ra8 {[%emt 0:00:22]} 54. a7 {[%emt 0:00:06]} Kc7 {[%emt 0:00:37]} 55. f4 {[%emt 0:00:18]} gxf4 {[%emt 0:00:09]} 56. gxf4 {[%emt 0:00:04]} Kd6 {[%emt 0:00:14]} 57. f5 {[%emt 0:00:19]} Kd7 {[%emt 0:00:22]} 58. Nb8+ {[%emt 0:00:22]} Ke7 {[%emt 0:00:09]} 59. Ra5 {[%emt 0:00:33]} Kf6 {[%emt 0:00:12]} 60. Nd7+ {[%emt 0:00:16]} Ke7 {[%emt 0:00:08]} 61. Nb6 {[%emt 0:00:04]} Rg8+ {[%emt 0:00:13]} 62. Kf2 {[%emt 0:00:10]} Kd6 {[%emt 0:00:08]} 63. a8=Q {[%emt 0:00:09]} Rxa8 {[%emt 0:00:04]} 64. Nxa8 {[%emt 0:00:09]} Ke7 {[%emt 0:00:03]} 65. d5 {[%emt 0:00:18]} Kf6 {[%emt 0:00:07]} 66. d6 {[%emt 0:00:09]} Kf7 {[%emt 0:00:04]} 67. d7 {[%emt 0:00:09]} Ke7 {[%emt 0:00:07]} 68. Rd5 {[%emt 0:00:10]} Kd8 {[%emt 0:00:06]} 69. f6 {[%emt 0:00:06]} h5 {[%emt 0:00:03]} 70. f7 {[%emt 0:00:02]} Ke7 {[%emt 0:00:05]} 71. d8=Q+ {[%emt 0:00:04]} Kxf7 {[%emt 0:00:04]} 72. Qc7+ {[%emt 0:00:10]} Kg6 {[%emt 0:00:04]} 73. Qc6+ {[%emt 0:00:01]} Kg7 {[%emt 0:00:04]} 74. Rd7+ {[%emt 0:00:03]} Kg8 {[%emt 0:00:03]} 75. Qc8# {[%emt 0:00:02]} 1-0

[Event "EYCC Girls U10 2021"]
[Site "Tornelo"]
[Date "2021.10.15"]
[Round "9.7"]
[White "Asachenko, Ksenia"]
[Black "Kuzmina, Sofya Vl"]
[Result "1-0"]
[ECO "B31"]
[WhiteElo "1382"]
[BlackElo "1102"]
[Annotator "NA"]
[PlyCount "123"]
[EventDate "2021.10.15"]
[EventType "swiss"]
[EventCountry "NET"]
[SourceTitle "playchess.com"]
[Source "ChessBase"]
[SourceQuality "1"]
[TimeControl "5400+30"]

1. e4 {[%emt 0:00:30]} c5 {[%emt 0:00:35]} 2. Nf3 {[%emt 0:00:08]} Nc6 {[%emt 0:00:06]} 3. Bb5 {[%emt 0:00:04]} g6 {[%emt 0:00:06]} 4. O-O {[%emt 0:00:09]} Bg7 {[%emt 0:00:18]} 5. c3 {[%emt 0:00:08]} Nf6 {[%emt 0:00:06]} 6. Re1 {[%emt 0:00:26]} O-O {[%emt 0:00:05]} 7. h3 {[%emt 0:00:39]} Qb6 {[%emt 0:01:14]} 8. Bc4 {[%emt 0:01:03]} Na5 {[%emt 0:00:54]} 9. Bf1 {[%emt 0:04:19]} Qc7 {[%emt 0:03:48]} 10. d4 {[%emt 0:03:14]} d5 {[%emt 0:01:44]} 11. e5 {[%emt 0:14:50]} Nd7 {[%emt 0:00:38]} 12. dxc5 {[%emt 0:06:22]} Nxc5 {[%emt 0:01:23]} 13. b4 {[%emt 0:03:46]} Ne4 {[%emt 0:01:00]} 14. bxa5 {[%emt 0:01:21]} Qxa5 {[%emt 0:01:24]} 15. Be3 {[%emt 0:09:38]} Bd7 {[%emt 0:04:03]} 16. Bd4 {[%emt 0:04:06]} Bh6 {[%emt 0:02:02]} 17. Bd3 {[%emt 0:03:11]} Nc5 {[%emt 0:01:42]} 18. Bxc5 {[%emt 0:02:27]} Qxc5 {[%emt 0:00:08]} 19. Qc2 {[%emt 0:02:41]} Bg7 {[%emt 0:00:57]} 20. Nd4 {[%emt 0:02:46]} e6 {[%emt 0:01:03]} 21. Nd2 {[%emt 0:02:26]} Rac8 {[%emt 0:01:25]} 22. Rac1 {[%emt 0:01:21]} Qc7 {[%emt 0:00:26]} 23. N2f3 {[%emt 0:03:51]} Bh6 {[%emt 0:00:15]} 24. Rb1 {[%emt 0:03:40]} a6 {[%emt 0:12:53]} 25. Bf1 {[%emt 0:05:30]} b5 {[%emt 0:02:43]} 26. Rb3 {[%emt 0:01:22]} b4 {[%emt 0:00:58]} 27. Rxb4 {[%emt 0:03:34]} a5 {[%emt 0:00:50]} 28. Rbb1 {[%emt 0:02:16]} Qxc3 {[%emt 0:00:21]} 29. Qxc3 {[%emt 0:00:16]} Rxc3 {[%emt 0:00:16]} 30. Rb7 {[%emt 0:00:55]} Ba4 {[%emt 0:00:47]} 31. Ra7 {[%emt 0:02:30]} Rc5 {[%emt 0:00:40]} 32. Nb3 {[%emt 0:04:48]} Rc2 {[%emt 0:02:01]} 33. Rxa5 {[%emt 0:00:54]} Bxb3 {[%emt 0:01:30]} 34. axb3 {[%emt 0:00:05]} Rb8 {[%emt 0:00:27]} 35. Rb1 {[%emt 0:00:27]} Rc3 {[%emt 0:00:34]} 36. b4 {[%emt 0:00:23]} Bf8 {[%emt 0:01:05]} 37. b5 {[%emt 0:00:42]} Bc5 {[%emt 0:00:21]} 38. b6 {[%emt 0:03:11]} Rxb6 {[%emt 0:01:34]} 39. Rxc5 {[%emt 0:00:23]} Rxb1 {[%emt 0:00:20]} 40. Rxc3 {[%emt 0:00:05]} Kg7 {[%emt 0:00:07]} 41. Rc7 {[%emt 0:00:10]} Rd1 {[%emt 0:00:06]} 42. Ng5 {[%emt 0:00:13]} d4 {[%emt 0:00:43]} 43. Nxe6+ {[%emt 0:00:15]} Kh6 {[%emt 0:00:09]} 44. Rxf7 {[%emt 0:00:06]} d3 {[%emt 0:00:04]} 45. Rd7 {[%emt 0:00:10]} d2 {[%emt 0:00:05]} 46. f4 {[%emt 0:01:42]} g5 {[%emt 0:01:18]} 47. Nxg5 {[%emt 0:00:28]} Kg6 {[%emt 0:00:10]} 48. Nf3 {[%emt 0:01:07]} Kf5 {[%emt 0:00:26]} 49. Rxd2 {[%emt 0:00:30]} Ra1 {[%emt 0:00:12]} 50. g3 {[%emt 0:00:25]} Ra3 {[%emt 0:01:03]} 51. Bd3+ {[%emt 0:00:13]} Ke6 {[%emt 0:00:08]} 52. f5+ {[%emt 0:00:11]} Kf7 {[%emt 0:00:06]} 53. Ng5+ {[%emt 0:00:20]} Ke7 {[%emt 0:00:13]} 54. f6+ {[%emt 0:00:05]} Kf8 {[%emt 0:00:05]} 55. Nxh7+ {[%emt 0:00:06]} Kg8 {[%emt 0:00:10]} 56. Ng5 {[%emt 0:00:08]} Kf8 {[%emt 0:00:09]} 57. e6 {[%emt 0:00:12]} Kg8 {[%emt 0:00:12]} 58. f7+ {[%emt 0:00:11]} Kf8 {[%emt 0:00:06]} 59. e7+ {[%emt 0:00:15]} Kxe7 {[%emt 0:00:05]} 60. Re2+ {[%emt 0:00:06]} Kf8 {[%emt 0:00:04]} 61. Re8+ {[%emt 0:00:04]} Kg7 {[%emt 0:00:04]} 62. f8=Q# {[%emt 0:00:05]} 1-0

[Event "EYCC Girls U10 2021"]
[Site "Tornelo"]
[Date "2021.10.15"]
[Round "9.8"]
[White "Bubnova, Uliana"]
[Black "Kutateladze, Anastasia"]
[Result "1-0"]
[ECO "B42"]
[WhiteElo "1333"]
[BlackElo "1137"]
[Annotator "NA"]
[PlyCount "67"]
[EventDate "2021.10.15"]
[EventType "swiss"]
[EventCountry "NET"]
[SourceTitle "playchess.com"]
[Source "ChessBase"]
[SourceQuality "1"]
[TimeControl "5400+30"]

1. e4 {[%emt 0:00:30]} c5 {[%emt 0:00:35]} 2. Nf3 {[%emt 0:00:07]} e6 {[%emt 0:00:06]} 3. d4 {[%emt 0:00:04]} cxd4 {[%emt 0:00:05]} 4. Nxd4 {[%emt 0:00:07]} a6 {[%emt 0:00:07]} 5. Bd3 {[%emt 0:00:05]} Qc7 {[%emt 0:00:27]} 6. O-O {[%emt 0:00:30]} Nf6 {[%emt 0:01:10]} 7. Qe2 {[%emt 0:01:06]} b6 {[%emt 0:01:50]} 8. c4 {[%emt 0:00:19]} d6 {[%emt 0:01:21]} 9. Nc3 {[%emt 0:02:07]} Bb7 {[%emt 0:02:03]} 10. f4 {[%emt 0:01:17]} Nbd7 {[%emt 0:02:08]} 11. Bd2 {[%emt 0:02:26]} Nc5 {[%emt 0:01:38]} 12. Bc2 {[%emt 0:02:40]} Be7 {[%emt 0:04:32]} 13. Rae1 {[%emt 0:01:59]} O-O {[%emt 0:02:58]} 14. f5 {[%emt 0:00:23]} e5 {[%emt 0:01:03]} 15. Nb3 {[%emt 0:00:56]} Rac8 {[%emt 0:03:18]} 16. Rf3 {[%emt 0:07:57]} Ne8 {[%emt 0:09:58]} 17. Rg3 {[%emt 0:02:46]} Bh4 {[%emt 0:04:08]} 18. Rh3 {[%emt 0:02:36]} Bxe1 {[%emt 0:02:29]} 19. Qxe1 {[%emt 0:03:07]} Nd7 {[%emt 0:06:31]} 20. Bd3 {[%emt 0:01:23]} Ndf6 {[%emt 0:03:34]} 21. Qh4 {[%emt 0:01:46]} Rb8 {[%emt 0:05:55]} 22. g4 {[%emt 0:05:23]} g6 {[%emt 0:15:45]} 23. Bg5 {[%emt 0:23:02]} Qd8 {[%emt 0:01:32]} 24. Qh6 {[%emt 0:00:56]} Rc8 {[%emt 0:03:48]} 25. Bxf6 {[%emt 0:00:39]} Nxf6 {[%emt 0:00:23]} 26. g5 {[%emt 0:00:09]} Nh5 {[%emt 0:00:40]} 27. f6 {[%emt 0:00:09]} Qd7 {[%emt 0:02:22]} 28. Rxh5 {[%emt 0:02:53]} Qg4+ {[%emt 0:00:18]} 29. Kf1 {[%emt 0:00:05]} Qf3+ {[%emt 0:00:09]} 30. Ke1 {[%emt 0:00:04]} Qh1+ {[%emt 0:00:14]} 31. Kd2 {[%emt 0:00:09]} Qg2+ {[%emt 0:00:11]} 32. Ne2 {[%emt 0:00:06]} Qxe2+ {[%emt 0:00:20]} 33. Kxe2 {[%emt 0:00:06]} gxh5 {[%emt 0:00:09]} 34. Qg7# {[%emt 0:00:04]} 1-0